{"text_format":"3","workbook":"xlsx","n_sheets":2,"sheets":["Liste de l’enseignant"," Données de la liste"],"not_rendered":{"defined_names":6},"read":"whole","date_system":"1900"}

{"sheet":"Liste de l’enseignant","index":0,"n_rows":10,"n_cols":10,"rows_kept":10,"merged":[[0,1,0,2],[0,4,0,8],[2,9,6,9]]}
[null,"Liste de l’enseignant",null,"Données de la liste","La légende de couleur de l’état se trouve dans cette cellule : Le style normal pour l’état Non commencé, R = 91 V = 133 B = 49 pour l’état En cours, R = 118 V = 88 B = 0 pour l’état Échéance aujourd'hui, R = 109 G = 66 B = 111 pour l’état En attente, barré pour l’état Terminé, R = 191 G = 191 B = 191 pour l’état Annulé et R = 191 G = 33 B = 28 pour l’état En retard."]
[null,"ÉLÉMENT","CATÉGORIE","DATE DE DÉBUT","ÉCHÉANCE","NOMBRE DE JOURS RESTANTS","ÉTAT","NOTES"]
[null,"Nettoyer les tiroirs","Bureau",{"$f":"DATE(YEAR(TODAY()),MONTH(TODAY())-1,6)","v":"2018-04-06"},{"$f":"DATE(YEAR(TODAY()),MONTH(TODAY())-1,16)","v":"2018-04-16"},{"$f":"IFERROR(IF(COUNT(Liste[[#This Row],[DATE DE DÉBUT]]:Liste[[#This Row],[ÉCHÉANCE]])<>2,\"\",IF(OR(Liste[[#This Row],[ÉTAT]]=\"Terminé\",Liste[[#This Row],[ÉTAT]]=\"Annulé\",Liste[[#This Row],[ÉTAT]]=\"En attente\"),\"\",Liste[[#This Row],[ÉCHÉANCE]]-TODAY())),\"\")","v":""},"Terminé",null,null,"Le segment d’état se trouve dans cette cellule. Pour filtrer la liste par état, sélectionnez un état dans le segment. Maintenez la touche CTRL enfoncée pour sélectionner plusieurs options."]
[null,"Commander des autocollants","Fournitures",{"$f":"DATE(YEAR(TODAY()),MONTH(TODAY())-1,11)","v":"2018-04-11"},{"$f":"DATE(YEAR(TODAY()),MONTH(TODAY())-1,21)","v":"2018-04-21"},{"$f":"IFERROR(IF(COUNT(Liste[[#This Row],[DATE DE DÉBUT]]:Liste[[#This Row],[ÉCHÉANCE]])<>2,\"\",IF(OR(Liste[[#This Row],[ÉTAT]]=\"Terminé\",Liste[[#This Row],[ÉTAT]]=\"Annulé\",Liste[[#This Row],[ÉTAT]]=\"En attente\"),\"\",Liste[[#This Row],[ÉCHÉANCE]]-TODAY())),\"\")","v":""},"Terminé"]
[null,"Sols lavés et cirés","Autres",{"$f":"DATE(YEAR(TODAY()),MONTH(TODAY()-1),DAY(TODAY())-25)","v":"2018-04-14"},{"$f":"DATE(YEAR(TODAY()),MONTH(TODAY())-1,26)","v":"2018-04-26"},{"$f":"IFERROR(IF(COUNT(Liste[[#This Row],[DATE DE DÉBUT]]:Liste[[#This Row],[ÉCHÉANCE]])<>2,\"\",IF(OR(Liste[[#This Row],[ÉTAT]]=\"Terminé\",Liste[[#This Row],[ÉTAT]]=\"Annulé\",Liste[[#This Row],[ÉTAT]]=\"En attente\"),\"\",Liste[[#This Row],[ÉCHÉANCE]]-TODAY())),\"\")","v":""},"Terminé"]
[null,"Étiquettes de nom créées","Fournitures",{"$f":"DATE(YEAR(TODAY()),MONTH(TODAY())-1,21)","v":"2018-04-21"},{"$f":"DATE(YEAR(TODAY()),MONTH(TODAY())-1,1)","v":"2018-04-01"},{"$f":"IFERROR(IF(COUNT(Liste[[#This Row],[DATE DE DÉBUT]]:Liste[[#This Row],[ÉCHÉANCE]])<>2,\"\",IF(OR(Liste[[#This Row],[ÉTAT]]=\"Terminé\",Liste[[#This Row],[ÉTAT]]=\"Annulé\",Liste[[#This Row],[ÉTAT]]=\"En attente\"),\"\",Liste[[#This Row],[ÉCHÉANCE]]-TODAY())),\"\")","v":""},"En attente"]
[null,"Noter les rapports écrits trimestriels","Évaluations",{"$f":"DATE(YEAR(TODAY()),MONTH(TODAY())-1,26)","v":"2018-04-26"},{"$f":"TODAY()-5","v":"2018-05-04"},{"$f":"IFERROR(IF(COUNT(Liste[[#This Row],[DATE DE DÉBUT]]:Liste[[#This Row],[ÉCHÉANCE]])<>2,\"\",IF(OR(Liste[[#This Row],[ÉTAT]]=\"Terminé\",Liste[[#This Row],[ÉTAT]]=\"Annulé\",Liste[[#This Row],[ÉTAT]]=\"En attente\"),\"\",Liste[[#This Row],[ÉCHÉANCE]]-TODAY())),\"\")","v":-5},"En retard"]
[null,"Rappel électronique pour bordereaux d’autorisation","Appels téléphoniques",{"$f":"DATE(YEAR(TODAY()),MONTH(TODAY()),1)","v":"2018-05-01"},{"$f":"TODAY()","v":"2018-05-09"},{"$f":"IFERROR(IF(COUNT(Liste[[#This Row],[DATE DE DÉBUT]]:Liste[[#This Row],[ÉCHÉANCE]])<>2,\"\",IF(OR(Liste[[#This Row],[ÉTAT]]=\"Terminé\",Liste[[#This Row],[ÉTAT]]=\"Annulé\",Liste[[#This Row],[ÉTAT]]=\"En attente\"),\"\",Liste[[#This Row],[ÉCHÉANCE]]-TODAY())),\"\")","v":""},"Annulé"]
[null,"Noter les rapports oraux","Bureau",{"$f":"DATE(YEAR(TODAY()),MONTH(TODAY()),7)","v":"2018-05-07"},{"$f":"DATE(YEAR(TODAY()),MONTH(TODAY()),17)","v":"2018-05-17"},{"$f":"IFERROR(IF(COUNT(Liste[[#This Row],[DATE DE DÉBUT]]:Liste[[#This Row],[ÉCHÉANCE]])<>2,\"\",IF(OR(Liste[[#This Row],[ÉTAT]]=\"Terminé\",Liste[[#This Row],[ÉTAT]]=\"Annulé\",Liste[[#This Row],[ÉTAT]]=\"En attente\"),\"\",Liste[[#This Row],[ÉCHÉANCE]]-TODAY())),\"\")","v":8},"En cours"]
[null,"Tailler les crayons","Fournitures",{"$f":"DATE(YEAR(TODAY()),MONTH(TODAY()),11)","v":"2018-05-11"},{"$f":"DATE(YEAR(TODAY()),MONTH(TODAY()),10)","v":"2018-05-10"},{"$f":"IFERROR(IF(COUNT(Liste[[#This Row],[DATE DE DÉBUT]]:Liste[[#This Row],[ÉCHÉANCE]])<>2,\"\",IF(OR(Liste[[#This Row],[ÉTAT]]=\"Terminé\",Liste[[#This Row],[ÉTAT]]=\"Annulé\",Liste[[#This Row],[ÉTAT]]=\"En attente\"),\"\",Liste[[#This Row],[ÉCHÉANCE]]-TODAY())),\"\")","v":1},"En cours"]

{"sheet":" Données de la liste","index":1,"n_rows":13,"n_cols":3,"rows_kept":13}
[null,"Données de la liste","Liste de l’enseignant"]
[null,"Catégorie"]
[null,"Bureau"]
[null,"Fournitures"]
[null,"Fournitures à acheter"]
[null,"Appels téléphoniques"]
[null,"Nouvelles idées"]
[null,"Évaluations"]
[null,"Équipe"]
[null,"Interventions"]
[null,"Ordinateur"]
[null,"Personnel"]
[null,"Autres"]